[Event "XVI Memorial Ezequiel Martin 2024"]
[Site "Mollet"]
[Date "2024.06.09"]
[Round "3.1"]
[White "Narciso Dublan, Marc"]
[Black "Pinero Fernandez, Xavier"]
[Result "1/2-1/2"]
[ECO "B13"]
[WhiteElo "2432"]
[BlackElo "2264"]
[Annotator "RC"]
[PlyCount "173"]
[EventDate "2024.06.01"]
[EventType "swiss"]
[EventCountry "ESP"]
[SourceTitle "playchess.com"]
[Source "ChessBase"]
[SourceQuality "1"]
[TimeControl "900+5"]

1. e4 {[%emt 0:00:03]} c6 {[%emt 0:00:24]} 2. d4 {[%emt 0:00:05]} d5 {[%emt 0:00:02]} 3. exd5 {[%emt 0:00:07]} cxd5 {[%emt 0:00:01]} 4. Bf4 {[%emt 0:00:14]} Nc6 {[%emt 0:00:05]} 5. c3 {[%emt 0:00:02]} e6 {[%emt 0:00:11]} 6. Nd2 {[%emt 0:00:12]} Bd6 {[%emt 0:00:02]} 7. Bxd6 {[%emt 0:00:08]} Qxd6 {[%emt 0:00:02]} 8. Ngf3 {[%emt 0:00:02]} Nge7 {[%emt 0:14:58]} 9. Bd3 {[%emt 0:01:08]} Bd7 {[%emt 0:00:00]} 10. O-O {[%emt 0:00:05]} O-O {[%emt 0:00:00]} 11. Re1 {[%emt 0:00:11]} f6 {[%emt 0:00:00]} 12. c4 {[%emt 0:13:48]} Be8 {[%emt 0:00:20]} 13. Qe2 {[%emt 0:00:00]} Bf7 {[%emt 0:00:05]} 14. a3 {[%emt 0:00:10]} Rad8 {[%emt 0:00:05]} 15. Rad1 {[%emt 0:00:00]} a5 {[%emt 0:00:05]} 16. h3 {[%emt 0:00:00]} b6 {[%emt 0:00:05]} 17. Bb1 {[%emt 0:00:15]} dxc4 {[%emt 0:00:00]} 18. Nxc4 {[%emt 0:00:00]} Qc7 {[%emt 0:00:10]} 19. Qe4 {[%emt 0:00:00]} Ng6 {[%emt 0:00:00]} 20. Rc1 {[%emt 0:00:00]} Rc8 {[%emt 0:00:10]} 21. h4 {[%emt 0:00:20]} Rfd8 {[%emt 0:00:00]} 22. h5 {[%emt 0:00:00]} Nf8 {[%emt 0:00:00]} 23. Qg4 {[%emt 0:00:00]} h6 {[%emt 0:00:15]} 24. Ne3 {[%emt 0:00:00]} Qd7 {[%emt 0:00:05]} 25. d5 {[%emt 0:00:00]} exd5 {[%emt 0:00:00]} 26. Nf5 {[%emt 0:00:00]} Be6 {[%emt 0:00:00]} 27. Nxh6+ {[%emt 0:00:00]} Kh8 {[%emt 0:00:00]} 28. Nf5 {[%emt 0:00:00]} Ne5 {[%emt 0:00:00]} 29. Nxe5 {[%emt 0:00:00]} Rxc1 {[%emt 0:00:00]} 30. Rxc1 {[%emt 0:00:00]} fxe5 {[%emt 0:00:00]} 31. h6 {[%emt 0:00:01]} g6 {[%emt 0:00:00]} 32. Qg3 {[%emt 0:00:01]} Bxf5 {[%emt 0:00:00]} 33. Qxe5+ {[%emt 0:00:02]} Kg8 {[%emt 0:00:00]} 34. Bxf5 {[%emt 0:00:02]} Re8 {[%emt 0:00:31]} 35. Bxd7 {[%emt 0:00:30]} Rxe5 {[%emt 0:00:01]} 36. Bb5 {[%emt 0:00:05]} Kh7 {[%emt 0:00:05]} 37. Rc6 {[%emt 0:00:01]} Re6 {[%emt 0:00:01]} 38. Kf1 {[%emt 0:00:18]} Kxh6 {[%emt 0:00:02]} 39. Rxe6 {[%emt 0:00:05]} Nxe6 {[%emt 0:00:01]} 40. Bc6 {[%emt 0:00:01]} Nc7 {[%emt 0:00:05]} 41. Ke2 {[%emt 0:00:03]} Kg5 {[%emt 0:00:01]} 42. Ke3 {[%emt 0:00:01]} Kf5 {[%emt 0:00:02]} 43. Kd4 {[%emt 0:00:02]} Ke6 {[%emt 0:00:02]} 44. Ba4 {[%emt 0:00:13]} Kd6 {[%emt 0:00:07]} 45. Bc2 {[%emt 0:00:06]} Ne6+ {[%emt 0:00:01]} 46. Ke3 {[%emt 0:00:01]} g5 {[%emt 0:00:13]} 47. Bf5 {[%emt 0:00:01]} Nc5 {[%emt 0:00:11]} 48. f4 {[%emt 0:00:09]} d4+ {[%emt 0:00:37]} 49. Kxd4 {[%emt 0:00:05]} gxf4 {[%emt 0:00:05]} 50. Bg4 {[%emt 0:00:38]} a4 {[%emt 0:00:05]} 51. Kc4 {[%emt 0:00:05]} Ke5 {[%emt 0:00:05]} 52. Be2 {[%emt 0:00:00]} Nd7 {[%emt 0:00:00]} 53. Kb5 {[%emt 0:00:00]} Kd4 {[%emt 0:00:10]} 54. Kxa4 {[%emt 0:00:15]} Kc5 {[%emt 0:00:05]} 55. b4+ {[%emt 0:00:05]} Kd6 {[%emt 0:00:05]} 56. Kb5 {[%emt 0:00:05]} Kc7 {[%emt 0:00:05]} 57. a4 {[%emt 0:00:05]} Ne5 {[%emt 0:00:05]} 58. Bf3 {[%emt 0:00:05]} Nd3 {[%emt 0:00:00]} 59. a5 {[%emt 0:00:00]} bxa5 {[%emt 0:00:00]} 60. bxa5 {[%emt 0:00:10]} Ne5 {[%emt 0:00:01]} 61. a6 {[%emt 0:00:05]} Kb8 {[%emt 0:00:19]} 62. Kb6 {[%emt 0:00:00]} Nd7+ {[%emt 0:00:00]} 63. Kc6 {[%emt 0:00:00]} Ne5+ {[%emt 0:00:00]} 64. Kd5 {[%emt 0:00:15]} Ng6 {[%emt 0:00:15]} 65. Kc5 {[%emt 0:00:00]} Ka7 {[%emt 0:00:05]} 66. Kb5 {[%emt 0:00:10]} Ne5 {[%emt 0:00:00]} 67. Be4 {[%emt 0:00:05]} Ng4 {[%emt 0:00:10]} 68. Bf3 {[%emt 0:00:00]} Ne5 {[%emt 0:00:00]} 69. Be2 {[%emt 0:00:00]} Ng6 {[%emt 0:00:00]} 70. Bd3 {[%emt 0:00:15]} Ne5 {[%emt 0:00:07]} 71. Be4 {[%emt 0:00:05]} Ng4 {[%emt 0:00:06]} 72. Bb7 {[%emt 0:00:00]} Ne3 {[%emt 0:00:03]} 73. Ka5 {[%emt 0:00:10]} Kb8 {[%emt 0:00:14]} 74. Kb6 {[%emt 0:00:00]} Nc4+ {[%emt 0:00:00]} 75. Kc5 {[%emt 0:00:00]} Ne3 {[%emt 0:00:10]} 76. Kb6 {[%emt 0:00:02]} Nc4+ {[%emt 0:00:00]} 77. Kb5 {[%emt 0:00:18]} Ne3 {[%emt 0:00:10]} 78. Bf3 {[%emt 0:00:00]} Ka7 {[%emt 0:00:05]} 79. Be4 {[%emt 0:00:10]} Ng4 {[%emt 0:00:05]} 80. Bb7 {[%emt 0:00:05]} Ne3 {[%emt 0:00:05]} 81. Bf3 {[%emt 0:00:05]} Nf5 {[%emt 0:00:05]} 82. Ka5 {[%emt 0:00:05]} Nd4 {[%emt 0:00:00]} 83. Bb7 {[%emt 0:00:05]} Nf5 {[%emt 0:00:10]} 84. Bf3 {[%emt 0:00:05]} Nd4 {[%emt 0:00:05]} 85. Bd5 {[%emt 0:00:00]} Nf5 {[%emt 0:00:05]} 86. Be4 {[%emt 0:00:03]} Nd4 {[%emt 0:00:00]} 87. Bb7 {[%emt 0:00:12]} 1/2-1/2

[Event "XVI Memorial Ezequiel Martin 2024"]
[Site "Mollet"]
[Date "2024.06.09"]
[Round "3.2"]
[White "Diaz Camallonga, Carles"]
[Black "Sanchez Aguilar, Arnau"]
[Result "1-0"]
[ECO "E11"]
[WhiteElo "2478"]
[BlackElo "2151"]
[Annotator "TA"]
[PlyCount "69"]
[EventDate "2024.06.01"]
[EventType "swiss"]
[EventCountry "ESP"]
[SourceTitle "playchess.com"]
[Source "ChessBase"]
[SourceQuality "1"]
[TimeControl "900+5"]

{[%evp 13,69,12,8,7,11,11,13,17,34,32,22,31,17,23,32,18,20,0,0,-41,-28,-44,0,0,72,58,125,62,95,92,90,104,261,254,451,443,484,489,482,483,472,443,652,650,627,633,673,674,1702,1677,1277,1025,29963,806,5343,988,856,647]} 1. Nf3 {[%emt 0:00:01]} d5 {[%emt 0:00:04]} 2. d4 {[%emt 0:00:02]} e6 {[%emt 0:00:07]} 3. c4 {[%emt 0:00:02]} Nf6 {[%emt 0:00:05]} 4. g3 {[%emt 0:00:02]} Bb4+ {[%emt 0:00:02]} 5. Bd2 {[%emt 0:00:01]} Be7 {[%emt 0:00:02]} 6. Bg2 {[%emt 0:00:02]} O-O {[%emt 0:00:13]} 7. O-O {[%emt 0:00:02]} c6 {[%emt 0:00:11]} 8. Bc3 {[%emt 0:00:06]} Nbd7 {[%emt 0:00:08]} 9. Nbd2 {[%emt 0:00:04]} a5 {[%emt 0:00:05][%cal Ba7a5,Ba5a4][%mdl 32]} 10. b3 {[%emt 0:00:07] The position is equal.} a4 {[%emt 0:00:41]} 11. b4 {[%emt 0:00:55]} dxc4 {[%emt 0:00:13]} 12. Nxc4 {[%emt 0:00:07]} Nd5 {[%emt 0:00:02] Prevents a3.} 13. Qe1 {[%emt 0:00:16]} a3 {[%emt 0:01:13]} 14. Bd2 {[%emt 0:00:16]} N7b6 {[%emt 0:00:10][%cal Bd7b6,Bb6a4,Ba4b2][%mdl 32]} 15. Na5 {[%emt 0:00:27]} Na4 {[%emt 0:03:00]} 16. Nb3 {[%emt 0:00:31]} Nb2 {[%emt 0:01:22]} 17. Rc1 {[%emt 0:00:03]} Qd6 {[%emt 0:00:26][%cal Of7f6]} 18. Nc5 {[%emt 0:00:13]} f5 {[%emt 0:01:52]} (18... Qd8 $11) 19. Ne5 $16 {[%emt 0:01:43]} b6 {[%emt 0:00:18]} ({Black should play} 19... Qd8 $14) 20. Ncd3 {[%emt 0:02:14]} (20. e4 $1 $16 {[%cal Re4d5]} bxc5 21. exd5 (21. bxc5 Qc7 $14) 21... cxd5 22. dxc5 (22. Rxc5 Qa6 $16) (22. bxc5 Qc7 $14)) 20... Nxd3 {[%emt 0:00:02]} 21. exd3 {[%emt 0:00:02]} ({But not} 21. Nxd3 $6 Ba6 $11) 21... Bd7 {[%emt 0:01:05]} 22. Nc4 $1 {[%emt 0:00:15]} Qb8 {[%emt 0:00:12] Loses the game.} (22... Qc7 $16) 23. b5 $1 $18 {[%emt 0:00:41]} Qb7 {[%emt 0:02:35]} (23... cxb5 24. Bxd5 exd5) 24. bxc6 {[%emt 0:00:58]} Qxc6 {[%emt 0:00:28]} 25. Ne3 {[%emt 0:00:04]} Qd6 {[%emt 0:00:16] [#]} 26. Nxd5 {[%emt 0:00:03]} exd5 {[%emt 0:00:01]} 27. Bf4 {[%emt 0:00:06]} Qe6 {[%emt 0:00:49]} (27... Qf6 $142 28. Bxd5+ Kh8 29. Bxa8 Rxa8) 28. Qxe6+ {[%emt 0:00:01]} Bxe6 {[%emt 0:00:01] [#]} 29. Rfe1 $1 {[%emt 0:00:02]} Kf7 {[%emt 0:00:02][%cal Bg8f7,Bf7e8,Be8d8,Bd8c7][%mdl 32]} 30. Rc6 {[%emt 0:00:03][%csl LRb6,LRe6]} Bd7 {[%emt 0:00:31]} 31. Bxd5+ {[%emt 0:00:01]} Ke8 {[%emt 0:00:01] [#]} 32. Bg5 $1 {[%emt 0:00:04]} Bxc6 {[%emt 0:00:24]} (32... Rf6 33. Rxf6) 33. Bxc6+ {[%emt 0:00:01]} (33. Rxe7+ $142 Kd8 34. Bxc6 Ra5 35. Rf7+ (35. Rxg7+ Kc8 $18) 35... Kc8 36. Rxf8+ Kc7 37. d5 Kd6 38. Rd8+ (38. Rxf5 b5 $18) 38... Ke5 39. Re8+ Kd4 40. d6) 33... Kd8 {[%emt 0:00:01]} 34. Bxe7+ {[%emt 0:00:06] A strong pair of Bishops.} (34. Rxe7 $142 h6 35. Rf7+ (35. Bxa8 hxg5 36. Rxg7 Rf6 $18) 35... hxg5 36. Rxf8+ Ke7 37. Rxa8) 34... Kc7 {[%emt 0:00:01]} 35. Bxa8 {[%emt 0:00:02] Weighted Error Value: White=0.11 (very precise) /Black=0.72.  Mistake:       	White=1     	Black=5      Inaccurate:     	White=1     	Black=2      OK:         	White=6     	Black=5      Best:        	White=4     	Black=1      Strong:       	White=2     	---} 1-0

[Event "XVI Memorial Ezequiel Martin 2024"]
[Site "Mollet"]
[Date "2024.06.09"]
[Round "3.3"]
[White "Vehi Bach, Victor Manuel"]
[Black "Ayats Llobera, Gerard"]
[Result "0-1"]
[ECO "B42"]
[WhiteElo "2215"]
[BlackElo "2466"]
[Annotator "TA"]
[PlyCount "158"]
[EventDate "2024.06.01"]
[EventType "swiss"]
[EventCountry "ESP"]
[SourceTitle "playchess.com"]
[Source "ChessBase"]
[SourceQuality "1"]
[TimeControl "900+5"]

{[%evp 15,158,53,54,33,63,56,57,66,71,43,73,54,60,67,63,54,66,63,66,42,41,0,58,31,43,57,66,54,213,70,112,100,101,84,88,66,57,58,106,0,67,54,103,90,108,86,122,85,114,62,76,72,81,76,83,91,96,89,90,90,90,90,90,90,142,94,312,305,313,165,165,176,166,136,205,201,182,195,180,191,189,179,201,140,143,154,147,149,161,62,62,0,120,113,109,71,103,0,0,-216,-121,-187,-188,-185,-66,-81,-53,-51,-41,-48,-41,-41,-23,-33,-22,-67,-16,-15,0,0,0,-16,-25,-51,-51,-92,-51,-51,-58,-51,-51,-16,-16,-16,-16,-87,-16,-222,12837,256,256,-29980,-29981,-29982,-29983]} 1. e4 {[%emt 0:00:01]} c5 {[%emt 0:00:01]} 2. Nf3 {[%emt 0:00:01]} e6 {[%emt 0:00:01]} 3. d4 {[%emt 0:00:02]} cxd4 4. Nxd4 {[%emt 0:00:01]} a6 {[%emt 0:00:02]} 5. Bd3 {[%emt 0:00:02]} Nf6 {[%emt 0:00:06]} 6. O-O {[%emt 0:00:02]} Qc7 {[%emt 0:00:02]} 7. Qe2 {[%emt 0:00:05]} d6 {[%emt 0:00:04]} 8. c4 {[%emt 0:00:02]} Nbd7 {[%emt 0:00:13]} 9. Nc3 {[%emt 0:00:05]} g6 {[%emt 0:00:04]} 10. Be3 {[%emt 0:00:37]} Bg7 {[%emt 0:00:02]} 11. Rac1 {[%emt 0:00:08] White is slightly better.} Ne5 {[%emt 0:00:02]} 12. f3 {[%emt 0:00:22] Against Nfg4} O-O {[%emt 0:00:07]} 13. b3 {[%emt 0:00:35]} Nxd3 {[%emt 0:00:02]} 14. Qxd3 {[%emt 0:00:02]} Bd7 {[%emt 0:00:35]} 15. Rfd1 {[%emt 0:00:07]} Rfd8 {[%emt 0:00:02]} 16. Qd2 {[%emt 0:00:19]} Rac8 {[%emt 0:00:19]} 17. Bh6 {[%emt 0:00:34]} Qc5 {[%emt 0:00:03] ...Bxh6 is the strong threat.} 18. Be3 {[%emt 0:00:33][%cal Od4e6] And now Nxe6! would win.} Qa5 {[%emt 0:00:04]} (18... Qc7 $1 $11) 19. Rc2 {[%emt 0:03:03]} Be8 {[%emt 0:00:08]} 20. Bg5 {[%emt 0:01:52]} Bc6 {[%emt 0:01:52]} 21. Kh1 {[%emt 0:00:27]} Qc5 $2 {[%emt 0:00:39]} (21... Re8 $14) 22. Be3 {[%emt 0:01:02]} (22. Nd5 $18 exd5 23. cxd5) 22... Qh5 {[%emt 0:00:07]} 23. Nxc6 {[%emt 0:06:58]} bxc6 {[%emt 0:00:51]} 24. Bb6 {[%emt 0:00:00]} Rd7 {[%emt 0:00:15]} 25. Bd4 {[%emt 0:00:00]} Rcd8 {[%emt 0:01:29]} 26. Qf2 {[%emt 0:00:00]} Re8 {[%emt 0:01:21]} (26... c5 $14 27. Bxf6 Bxf6) 27. Kg1 {[%emt 0:00:00]} (27. Rcd2 $16) 27... h6 {[%emt 0:00:17]} (27... c5 $11 28. Be3 d5 29. exd5 (29. Bxc5 dxc4 30. Re1 cxb3 $15) 29... exd5 30. Nxd5 (30. Bxc5 dxc4 31. Rcc1 Bh6 $19) 30... Nxd5 31. cxd5 (31. Rxd5 $2 Rxd5 32. cxd5 Rxe3 $19) 31... Rxd5) 28. Qe2 {[%emt 0:00:00]} Qa5 {[%emt 0:00:06]} (28... d5 $14) 29. Na4 $16 {[%emt 0:00:00]} Kh7 {[%emt 0:00:38]} 30. Qd2 {[%emt 0:00:00]} Qh5 {[%emt 0:00:14]} 31. Rdc1 {[%emt 0:00:00]} Rg8 {[%emt 0:01:29]} 32. g4 {[%emt 0:00:00]} (32. h3 $16) 32... Qh4 {[%emt 0:00:32][%cal Of6e4]} 33. Qf2 {[%emt 0:00:00]} Qxf2+ {[%emt 0:06:03]} 34. Bxf2 {[%emt 0:00:00]} Rgd8 {[%emt 0:00:00]} 35. Kf1 {[%emt 0:00:00]} Kg8 {[%emt 0:00:00]} 36. h4 {[%emt 0:00:00]} h5 {[%emt 0:00:00]} 37. g5 {[%emt 0:00:00]} Ne8 {[%emt 0:00:00]} 38. Rd1 $36 {[%emt 0:00:00][%mdl 2048] Black is under strong pressure.} Be5 {[%emt 0:00:00]} 39. Kg2 {[%emt 0:00:00]} Kf8 {[%emt 0:00:00]} (39... Bg7 $142) 40. Be3 {[%emt 0:00:00]} (40. Bb6 $142) 40... Ke7 {[%emt 0:00:00]} (40... Kg8 $16 41. Kf2 Bg7) 41. f4 $18 {[%emt 0:00:00]} Bg7 {[%emt 0:00:00]} 42. Kf3 {[%emt 0:00:00]} (42. Nb6 $142) 42... f5 {[%emt 0:00:00]} 43. exf5 {[%emt 0:00:07]} gxf5 {[%emt 0:00:00]} 44. Rcd2 {[%emt 0:00:11]} Bh8 {[%emt 0:00:00]} (44... Kf7 $16 45. Nc5 Re7) 45. c5 {[%emt 0:00:16]} d5 {[%emt 0:00:00]} 46. Bd4 $1 {[%emt 0:00:01]} Bxd4 {[%emt 0:00:00]} 47. Rxd4 {[%emt 0:00:01]} Rb7 {[%emt 0:00:00]} 48. Nb2 $1 {[%emt 0:00:08]} Nc7 {[%emt 0:00:00][%cal Oe6e5]} 49. Re1 {[%emt 0:00:17]} Rb5 {[%emt 0:00:00]} 50. Nd3 {[%emt 0:00:02]} a5 {[%emt 0:01:25]} 51. Rc1 {[%emt 0:00:09]} Na6 {[%emt 0:00:00]} 52. Ne5 {[%emt 0:00:02]} ({White should play} 52. Ra4 $18) 52... Rc8 $14 {[%emt 0:00:00]} 53. Nd3 {[%emt 0:00:04]} (53. Rd2 $1 $14) 53... Nb4 {[%emt 0:00:00]} (53... Rd8 $1 $11) 54. Nxb4 $16 {[%emt 0:00:06]} axb4 {[%emt 0:00:00][%mdl 4096] Endgame. KRR-KRR} 55. Rc2 {[%emt 0:00:03]} Ra8 {[%emt 0:00:00]} 56. Re2 {[%emt 0:00:09]} (56. Rd1 $1 $16) 56... Raa5 $11 {[%emt 0:00:00]} 57. g6 $2 {[%emt 0:00:12]} (57. Kf2 $11 {and White stays safe.}) 57... Kf6 {[%emt 0:00:00]} (57... Rxc5 58. Rxb4 Rc3+ 59. Kg2 $11) ({Black should try} 57... Ra8 $1 $19 {[%cal Oa8g8]} 58. Re1 Kf6 (58... Rxa2 $2 59. g7 $19) (58... Rxc5 $2 59. Rxb4 Rxa2 60. g7 $19)) 58. g7 {[%emt 0:01:07] [#]} Ra8 $1 $19 {[%emt 0:00:00][%cal Oa8g8]} 59. Rd1 Rb7 {[%emt 0:00:45]} (59... Kxg7 60. Rxe6 Rxc5 (60... Rxa2 61. Rxc6 Rc2 62. Rxd5 $16) 61. Rd2 $17) (59... Rxc5 $19 60. Rg1 Rc3+ 61. Kf2 Kf7) 60. Rg1 $15 {[%emt 0:00:00]} Rg8 $1 {[%emt 0:00:00]} 61. Rg5 {[%emt 0:00:15]} (61. Rge1 $2 Re7 (61... Rbxg7 $2 62. Rxe6+ Kf7 63. Re7+ Kg6 64. R1e6+ Kh7 65. Rxg7+ Rxg7 66. Rxc6 $18) 62. Rg1 Rgxg7 $19 (62... Rexg7 63. Rg5 $17)) 61... Rbxg7 {[%emt 0:00:00]} 62. Rxh5 {[%emt 0:00:00]} Rg3+ {[%emt 0:00:00]} 63. Kf2 {[%emt 0:00:00]} Rg2+ {[%emt 0:00:00]} 64. Ke1 $1 {[%emt 0:00:00]} Rxe2+ {[%emt 0:00:00]} 65. Kxe2 {[%emt 0:00:00] KR-KR} Rg2+ (65... Kg6 $15 66. Rg5+ Kf7) 66. Kd3 {[%emt 0:00:00]} Rxa2 {[%emt 0:00:00] aiming for ...Rf2.} 67. Rh6+ {[%emt 0:00:00]} Kf7 {[%emt 0:00:00] Hoping for ...Rf2.} 68. Rh7+ {[%emt 0:00:00]} Kg6 {[%emt 0:00:00]} 69. Rc7 {[%emt 0:00:00]} Rb2 {[%emt 0:00:00]} 70. Rxc6 Rxb3+ 71. Kd4 {[%emt 0:00:00]} Kf6 {[%emt 0:01:00] Threatens to win with ...Rf3.} 72. Rb6 {[%emt 0:00:00]} Rb1 {[%emt 0:00:00]} 73. h5 {[%emt 0:00:00]} Rd1+ (73... b3 {is more complex.} 74. c6 b2 75. Kd3 Rd1+) 74. Ke3 {[%emt 0:01:05]} Rc1 {[%emt 0:00:00]} (74... Re1+ {simplifies} 75. Kd3 Rc1 76. Rxb4 Rxc5 77. Rb7 Rc6) 75. c6 {[%emt 0:00:05] [#]} (75. Rxb4 $11 {keeps the balance.} Rxc5 76. Rb8) 75... b3 76. h6 $2 {[%emt 0:00:05]} (76. Rxb3 $11 Rxc6 77. Rb7) 76... Rh1 $4 {[%emt 0:00:25][%mdl 8192]} (76... Kg6 $19 77. Kd4 Kxh6 (77... b2 78. Rxb2 Rxc6 79. Rh2 $11)) 77. Rxb3 $2 {[%emt 0:00:00]} (77. c7 Rc1 78. Rb7 (78. Rxb3 Rxc7 79. Kf2 Rc2+ 80. Kg3 Kg6 $17) (78. h7 Rc3+ 79. Kd4 Rc4+ 80. Kd3 Kg7 $18) 78... d4+ 79. Kd3 (79. Kxd4 e5+ 80. fxe5+ Kg5 81. h7 Rd1+ 82. Ke3 b2 83. c8=Q Re1+ 84. Kd2 b1=Q) 79... e5 80. h7 (80. Rxb3 e4+ 81. Kxd4 Rxc7 $11) 80... Rc3+ 81. Kd2 Rc2+ 82. Kd1) 77... Rh3+ $18 {[%emt 0:00:00]} 78. Kd4 $4 {[%mdl 8192]} (78. Kd2 $18 Rxb3 79. c7 Rb2+ 80. Kc3) 78... Rxb3 {[%emt 0:00:00]} 79. c7 {[%emt 0:00:15]} Rb4+ {A wild game.   Weighted Error Value: White=0.33/Black=0.29 (precise) .  Loses game:     	White=2     	Black=1      Missed win:     	---       	Black=1      Mistake:       	White=11    	Black=12     Inaccurate:     	White=8     	Black=6      OK:         	White=21    	Black=21     Best:        	White=5     	Black=5      Strong:       	White=2     	Black=2} 0-1

[Event "XVI Memorial Ezequiel Martin 2024"]
[Site "Mollet"]
[Date "2024.06.09"]
[Round "3.4"]
[White "Hernandez, Cristian Andres"]
[Black "Mompel Ferruz, Xavier"]
[Result "1-0"]
[ECO "B90"]
[WhiteElo "2350"]
[BlackElo "2279"]
[Annotator "RC"]
[PlyCount "57"]
[EventDate "2024.06.01"]
[EventType "swiss"]
[EventCountry "ESP"]
[SourceTitle "playchess.com"]
[Source "ChessBase"]
[SourceQuality "1"]
[TimeControl "900+5"]

1. e4 {[%emt 0:00:02]} c5 {[%emt 0:00:01]} 2. Nf3 {[%emt 0:00:02]} d6 {[%emt 0:00:01]} 3. d4 {[%emt 0:00:01]} cxd4 {[%emt 0:00:01]} 4. Nxd4 {[%emt 0:00:01]} Nf6 {[%emt 0:00:01]} 5. Nc3 {[%emt 0:00:02]} a6 {[%emt 0:00:01]} 6. Bd3 {[%emt 0:00:04]} e5 {[%emt 0:00:02]} 7. Nde2 {[%emt 0:00:01]} Be7 {[%emt 0:00:14]} 8. O-O {[%emt 0:00:03]} Be6 {[%emt 0:00:02]} 9. Ng3 {[%emt 0:00:08]} Nbd7 {[%emt 0:00:08]} 10. f4 {[%emt 0:00:18]} exf4 {[%emt 0:00:34]} 11. Bxf4 {[%emt 0:00:02]} Ne5 {[%emt 0:00:19]} 12. Kh1 {[%emt 0:00:09]} b5 {[%emt 0:00:18]} 13. Nd5 {[%emt 0:00:29]} Ng6 {[%emt 0:01:28]} 14. Nxe7 {[%emt 0:00:14]} Nxf4 {[%emt 0:00:35]} 15. Ng8 {[%emt 0:01:33]} Nxg8 {[%emt 0:00:43]} 16. Rxf4 {[%emt 0:00:01]} Nf6 {[%emt 0:00:05]} 17. Qe2 {[%emt 0:00:45]} O-O {[%emt 0:00:19]} 18. e5 {[%emt 0:05:12]} dxe5 {[%emt 0:00:21]} 19. Qxe5 {[%emt 0:00:01]} Qb8 {[%emt 0:00:59]} 20. Qg5 {[%emt 0:01:08]} h6 {[%emt 0:00:27]} 21. Qh4 {[%emt 0:00:02]} Qe5 {[%emt 0:00:47]} 22. Raf1 {[%emt 0:01:04]} g5 {[%emt 0:03:01]} 23. Qxh6 {[%emt 0:00:02]} gxf4 {[%emt 0:00:01]} 24. Rxf4 {[%emt 0:00:01]} Rfd8 {[%emt 0:02:02]} 25. Rh4 {[%emt 0:01:05]} Ne4 {[%emt 0:00:05]} 26. Nxe4 {[%emt 0:00:38]} Qg7 {[%emt 0:00:12]} 27. Qf4 {[%emt 0:00:26]} Rac8 {[%emt 0:00:41]} 28. Nf6+ {[%emt 0:00:33]} Kf8 {[%emt 0:00:01]} 29. Qb4+ {[%emt 0:00:04]} 1-0